bitfinex-derivatives/quotes_BTCF0:USTF0_20250309
["timestamp","ask_amount","ask_price","bid_price","bid_amount"]
[1741528798655,6.023e-05,83561.0,83560.0,0.01484281]
[1741528798959,0.0598437,83566.0,83560.0,0.01484281]
[1741528798960,0.00023198,83566.0,83565.0,0.1196888]
[1741528799159,0.00017942,83567.0,83565.0,0.9109688]
[1741528799361,0.00017942,83567.0,83566.0,0.3588074]
[1741528799664,0.119686,83567.0,83566.0,0.23912]
[1741528799866,0.3608,83580.0,83565.0,0.07119188]
[1741528800063,0.2167,83565.0,83545.0,0.05045]
[1741528800269,0.3608,83546.0,83545.0,0.05045]
[1741528800475,0.3608,83556.0,83545.0,0.05045]
[1741528800656,0.13759337,83564.0,83545.0,0.05045]
[1741528800657,0.3608,83563.0,83545.0,0.05045]
[1741528800964,0.3608,83563.0,83553.0,0.119706]
[1741528800965,0.00017953,83554.0,83553.0,0.119706]
[1741528801163,0.00302574,83555.0,83553.0,0.119706]
[1741528801469,0.00239337,83564.0,83551.0,0.23521135]
[1741528801674,0.00239337,83564.0,83563.0,0.1196917]
[1741528801973,0.15239337,83564.0,83550.0,0.0598549]
[1741528802163,0.3608,83552.0,83551.0,0.1197089]
[1741528802357,0.3608,83552.0,83547.0,0.1197135]
[1741528802559,0.1197146,83547.0,83516.0,0.1264]
[1741528802758,0.38638,83547.0,83516.0,0.1264]
[1741528802963,0.3608,83531.0,83516.0,0.1264]
[1741528803163,0.3608,83531.0,83505.0,0.0598873]
[1741528803164,0.3608,83524.0,83505.0,0.19148]
[1741528803367,0.3608,83506.0,83505.0,0.3112548]
[1741528803568,0.00869635,83515.0,83508.0,0.0598846]
[1741528803765,0.09848635,83515.0,83505.0,0.19148]
[1741528803964,0.00136245,83514.0,83505.0,0.19148]
[1741528804165,0.00136245,83514.0,83511.0,0.059883]
[1741528804370,0.0333429,83538.0,83527.0,0.1197433]
[1741528804677,0.4839329,83528.0,83505.0,0.19148]
[1741528804870,0.3608,83528.0,83527.0,0.1197433]
[1741528805265,0.31944813,83530.0,83529.0,0.1197404]
[1741528805466,0.23262462,83530.0,83529.0,0.1197404]
[1741528805666,0.06395166,83536.0,83535.0,0.1197318]
[1741528805872,0.73008819,83563.0,83562.0,0.1196931]
[1741528806077,0.38063109,83563.0,83562.0,0.3112131]
[1741528806278,0.00017953,83571.0,83562.0,0.91388]
[1741528806479,0.63096774,83599.0,83596.0,0.0598221]
[1741528806679,0.62972773,83599.0,83598.0,0.1196416]
[1741528806873,0.3608,83620.0,83605.0,0.0598155]
[1741528807075,0.0333429,83633.0,83590.0,0.00899383]
[1741528807076,0.1359,83633.0,83632.0,0.1195929]
[1741528807277,0.1359,83633.0,83632.0,0.6719129]
[1741528807476,0.1362,83646.0,83632.0,0.55232]
[1741528807674,0.1362,83646.0,83645.0,0.4803743]
[1741528807675,0.1359,83646.0,83645.0,0.4803743]
[1741528807874,0.27392197,83646.0,83645.0,0.3608]
[1741528808081,0.39349557,83646.0,83636.0,0.32333498]
[1741528808277,0.39349557,83646.0,83632.0,0.55296]
[1741528808278,0.1195915,83633.0,83632.0,0.19216]
[1741528808482,0.3608,83633.0,83624.0,0.00017942]
[1741528808682,0.1196087,83621.0,83620.0,0.19148]
[1741528808884,0.1196201,83613.0,83612.0,0.19148]
[1741528809078,0.129,83620.0,83619.0,0.1196115]
[1741528809394,0.3608,83648.0,83612.0,0.70228]
[1741528809684,0.0598026,83624.0,83613.0,0.1293]
[1741528809882,0.12995832,83638.0,83627.0,0.0597999]
[1741528810077,0.00017942,83627.0,83612.0,0.19148]
[1741528810284,0.7216,83618.0,83582.0,0.19148]
[1741528810489,0.119663,83583.0,83582.0,0.19148]
[1741528810687,0.3608,83585.0,83582.0,0.19148]
[1741528810880,0.129,83584.0,83583.0,0.119663]
[1741528811183,0.68413498,83610.0,83583.0,0.119663]
[1741528811184,0.3608,83610.0,83609.0,0.1196258]
[1741528811484,0.1196058,83623.0,83605.0,0.3608]
[1741528811686,0.1346,83622.0,83606.0,0.1299]
[1741528811887,0.3608,83607.0,83606.0,0.1299]
[1741528812090,0.3608,83607.0,83606.0,0.1196301]
[1741528812278,0.31887901,83607.0,83606.0,0.1196301]
[1741528812483,0.10047959,83612.0,83611.0,0.119623]
[1741528812678,0.0585586,83612.0,83611.0,0.119623]
[1741528812987,0.0333429,83667.0,83624.0,0.1196044]
[1741528812988,0.09091639,83625.0,83624.0,0.1196044]
[1741528813189,0.09091639,83625.0,83624.0,0.8219244]
[1741528813190,0.0489954,83625.0,83624.0,0.8219244]
[1741528813394,0.00707441,83625.0,83624.0,0.6719244]
[1741528813689,0.3608,83634.0,83631.0,0.1195944]
[1741528813885,0.3388,83647.0,83631.0,0.58656]
[1741528814382,0.3608,83632.0,83624.0,0.32202]
[1741528814577,0.3608,83632.0,83624.0,0.19152]
[1741528814578,0.1196029,83625.0,83624.0,0.19152]
[1741528814777,0.4804029,83625.0,83624.0,0.19148]
[1741528815289,0.57037243,83625.0,83624.0,0.19148]
[1741528815879,0.57037243,83625.0,83624.0,0.3110844]
[1741528815880,0.3608,83625.0,83624.0,0.3110844]
[1741528816285,0.01747,83627.0,83624.0,0.529182]
[1741528816586,0.2461318,83632.0,83631.0,0.1195944]
[1741528816782,0.3608,83643.0,83642.0,0.1195786]
[1741528817186,0.3608,83643.0,83642.0,0.2695786]
[1741528817381,0.1239,83669.0,83668.0,0.1195415]
[1741528817585,0.1239,83669.0,83668.0,0.3110215]
[1741528818189,0.04701,83671.0,83670.0,0.1195386]
[1741528818384,0.00072,83679.0,83678.0,0.1195272]
[1741528818587,0.22678948,83680.0,83679.0,0.1195258]
[1741528818790,0.18491338,83680.0,83679.0,0.6303258]
[1741528819187,0.18491338,83680.0,83679.0,0.1195258]
[1741528819383,0.1195299,83677.0,83675.0,0.3608]
[1741528819596,0.1291,83679.0,83678.0,0.1195272]
[1741528819789,0.3608,83679.0,83678.0,0.1195272]
[1741528819990,0.3608,83679.0,83678.0,0.1203672]
[1741528820190,0.3608,83679.0,83668.0,0.19148]
[1741528820191,0.0597674,83673.0,83668.0,0.19148]
[1741528820393,0.2617,83678.0,83672.0,0.0597679]
[1741528820595,0.2617,83678.0,83677.0,0.1195286]
[1741528821193,0.00604,83682.0,83681.0,0.1195229]
[1741528821402,0.39021026,83683.0,83682.0,0.1195215]
[1741528821596,0.36821026,83683.0,83682.0,0.1195215]
[1741528821799,0.3608,83695.0,83682.0,0.1195215]
[1741528821800,0.29490668,83687.0,83686.0,0.1195158]
[1741528821997,0.21499438,83687.0,83686.0,1.2979158]
[1741528822302,0.29620063,83697.0,83686.0,1.27054769]
[1741528822486,0.68715372,83724.0,83698.0,0.1194974]
[1741528822692,0.68715372,83724.0,83712.0,0.3608]
[1741528822889,0.2665,83723.0,83722.0,0.1194644]
[1741528823406,0.00136179,83722.0,83721.0,0.1194658]
[1741528823596,0.00136179,83722.0,83721.0,0.3108258]
[1741528823797,0.08780047,83724.0,83723.0,0.1194629]
[1741528823999,0.04594393,83724.0,83723.0,0.1194629]
[1741528824193,0.00017919,83731.0,83730.0,0.119453]
[1741528824497,0.119453,83730.0,83721.0,0.310825]
[1741528824696,0.1194644,83722.0,83721.0,0.01203528]
[1741528824899,0.3608,83723.0,83721.0,0.01203528]
[1741528825101,0.1194644,83722.0,83721.0,0.01203528]
[1741528825295,0.2613,83722.0,83721.0,0.13150108]
[1741528825494,0.2613,83722.0,83721.0,0.01203528]
[1741528825694,0.2613,83722.0,83702.0,0.0597459]
[1741528825695,0.1194886,83705.0,83704.0,0.19136]
[1741528825899,0.7216,83705.0,83704.0,0.3108501]
[1741528826092,0.22192,83717.0,83704.0,0.19136]
[1741528826297,0.3598,83705.0,83704.0,0.19136]
[1741528826502,0.3598,83705.0,83704.0,0.3108501]
[1741528826891,0.4792886,83705.0,83704.0,0.19136]
[1741528827292,0.3598,83705.0,83704.0,0.19136]
[1741528827600,0.2698762,83705.0,83704.0,0.3108501]
[1741528827791,0.00017919,83713.0,83704.0,0.3108501]
[1741528827996,0.3608,83742.0,83730.0,0.119453]
[1741528828300,0.1265,83738.0,83730.0,0.119453]
[1741528828606,0.1265,83738.0,83712.0,0.0597389]
[1741528828793,0.1265,83738.0,83737.0,0.119443]
[1741528829099,0.3803415,83738.0,83737.0,0.119443]
[1741528829709,0.2609,83738.0,83729.0,0.00017919]
[1741528829900,0.0597224,83737.0,83733.0,0.0597224]
[1741528830101,0.0597255,83732.0,83729.0,0.00017919]
[1741528830297,0.119453,83730.0,83729.0,0.11963359]
[1741528830501,0.4205241,83734.0,83729.0,0.05990589]
[1741528830502,0.1200898,83734.0,83729.0,0.05990589]
[1741528830702,0.2608,83736.0,83735.0,0.1194458]
[1741528832003,0.3802444,83736.0,83735.0,0.1194458]
[1741528832302,0.3802444,83736.0,83735.0,0.19128]
[1741528832608,0.2608,83736.0,83735.0,0.3107258]
[1741528835098,0.3608,83744.0,83743.0,0.1194344]
[1741528835905,0.6277,83744.0,83743.0,0.1194344]
[1741528836409,0.2669,83744.0,83743.0,0.1194344]
[1741528836705,0.747133,83744.0,83743.0,0.006]
[1741528836899,0.747133,83744.0,83743.0,0.1254344]
[1741528837095,0.747133,83744.0,83743.0,0.006]
[1741528837499,0.747133,83744.0,83743.0,0.1254344]
[1741528837808,0.6277,83744.0,83743.0,0.1254344]
[1741528838210,0.6277,83744.0,83743.0,0.1314344]
[1741528838211,0.2669,83744.0,83743.0,0.1314344]
[1741528838801,0.386333,83744.0,83743.0,0.012]
[1741528839004,0.1144444,83736.0,83735.0,0.19128]
[1741528839207,0.4742444,83736.0,83735.0,0.3107258]
[1741528839910,0.4622444,83736.0,83735.0,0.3107258]
[1741528840605,0.1194487,83733.0,83732.0,0.1912]
[1741528840800,0.1194515,83731.0,83730.0,0.1912]
[1741528840999,0.1194515,83731.0,83730.0,0.310653]
[1741528841200,0.1194515,83731.0,83712.0,0.34650474]
[1741528841201,0.1194701,83718.0,83717.0,0.1194711]
[1741528841512,0.3608,83720.0,83719.0,0.1194687]
[1741528841807,0.3588,83720.0,83717.0,0.1912]
[1741528842007,0.3588,83720.0,83719.0,0.1194687]
[1741528842207,0.3588,83720.0,83717.0,0.28497584]
[1741528842409,0.3588,83720.0,83719.0,0.1194687]
[1741528842816,0.3588,83720.0,83719.0,0.2473687]
[1741528843315,0.8400672,83720.0,83719.0,0.1254687]
[1741528843503,0.8400672,83720.0,83719.0,0.006]
[1741528843905,1.08003673,83720.0,83719.0,0.006]
[1741528844109,0.8180672,83720.0,83719.0,0.006]
[1741528844706,0.8170672,83720.0,83719.0,0.1194687]
[1741528844908,1.0710672,83720.0,83719.0,0.004]
[1741528845216,0.1194701,83718.0,83717.0,0.10576924]
[1741528845407,0.1194786,83712.0,83709.0,0.1912]
[1741528845612,0.1792329,83705.0,83704.0,0.1912]
[1741528845808,0.119491,83704.0,83700.0,0.1912]
[1741528846118,0.1195158,83686.0,83685.0,0.00064]
[1741528846416,0.1195172,83685.0,83684.0,0.1912]
[1741528846726,0.0597601,83683.0,83665.0,0.1195416]
[1741528846914,0.1195472,83664.0,83663.0,0.1912]
[1741528847115,0.1195472,83664.0,83654.0,0.1195571]
[1741528847116,0.1195627,83655.0,83654.0,0.1195571]
[1741528847310,0.1866745,83663.0,83659.0,0.1195501]
[1741528847521,0.3608,83664.0,83653.0,0.1195599]
[1741528847522,0.1195625,83654.0,83653.0,0.1195599]
[1741528848020,0.1195701,83648.0,83647.0,0.1912]
[1741528848222,0.0597841,83650.0,83639.0,0.1282]
[1741528848515,0.0597841,83650.0,83639.0,0.1195786]
[1741528848516,0.059791,83640.0,83639.0,0.1195786]
[1741528848714,0.56776,83654.0,83652.0,0.1195629]
[1741528848715,0.0001793,83653.0,83652.0,0.1195629]
[1741528848918,0.3608,83661.0,83648.0,0.0597843]
[1741528849115,0.3608,83675.0,83674.0,0.1195329]
[1741528849314,0.4803315,83675.0,83674.0,0.3107729]
[1741528849613,0.72030103,83675.0,83674.0,0.19124]
[1741528849816,0.3608,83675.0,83674.0,0.3107729]
[1741528850318,0.3618,83675.0,83674.0,0.3107729]
[1741528850514,0.0001793,83683.0,83682.0,0.1195215]
[1741528851011,0.0001793,83683.0,83678.0,0.0597629]
[1741528851012,0.1195258,83679.0,83678.0,0.0597629]
[1741528851216,0.0597648,83677.0,83674.0,0.19124]
[1741528851416,0.3602306,83675.0,83674.0,0.19124]
[1741528851724,0.3602306,83675.0,83674.0,0.3107729]
[1741528851725,0.2406991,83675.0,83674.0,0.3107729]
[1741528851924,0.3572306,83675.0,83674.0,0.19124]
[1741528852122,0.2376991,83675.0,83674.0,0.19124]
[1741528852426,0.3572306,83675.0,83674.0,0.19124]
[1741528852630,0.59920013,83675.0,83674.0,0.19124]
[1741528853014,0.1195429,83667.0,83665.0,0.19128]
[1741528853326,0.1165643,83652.0,83651.0,0.19128]
[1741528853619,0.8381643,83652.0,83651.0,0.19128]
[1741528853827,1.07813383,83652.0,83651.0,0.19128]
[1741528854020,0.1196144,83619.0,83618.0,0.119612]
[1741528854219,0.0597995,83628.0,83620.0,0.0598045]
[1741528854419,0.1196059,83625.0,83624.0,0.1196015]
[1741528854723,0.3608,83625.0,83607.0,0.00918148]
[1741528855040,0.0001793,83627.0,83626.0,0.1196015]
[1741528855327,0.1195587,83656.0,83655.0,0.1195571]
[1741528855829,0.1348,83659.0,83653.0,0.19128]
[1741528856015,0.1195615,83654.0,83653.0,0.19128]
[1741528856721,0.1185615,83654.0,83653.0,0.19128]
[1741528856922,0.1185615,83654.0,83651.0,0.1195653]
[1741528856923,0.1195643,83652.0,83651.0,0.1195653]
[1741528857124,0.1793563,83649.0,83648.0,0.1195698]
[1741528857928,0.0587848,83649.0,83648.0,0.1195698]
[1741528858323,0.1322,83650.0,83648.0,0.01771402]
[1741528858528,0.1195729,83646.0,83645.0,0.1197508]
[1741528858721,0.1185729,83646.0,83645.0,0.01789364]
[1741528858930,0.33654243,83646.0,83645.0,0.01789364]
[1741528859230,0.33654243,83646.0,83645.0,1e-07]
[1741528859621,0.60074243,83646.0,83645.0,1e-07]
[1741528859828,0.2642,83646.0,83645.0,0.1195744]
[1741528860131,0.35954243,83646.0,83645.0,1e-07]
[1741528860328,0.49154243,83646.0,83645.0,1e-07]
[1741528860530,0.68794243,83646.0,83645.0,1e-07]
[1741528860723,0.1196015,83627.0,83626.0,0.1196004]
[1741528860928,0.1196015,83627.0,83626.0,0.0460322]
[1741528861122,0.1196187,83614.0,83613.0,0.19132]
[1741528861326,0.4804187,83614.0,83613.0,0.19132]
[1741528861530,0.3608,83614.0,83613.0,0.3109401]
[1741528861832,0.23996953,83614.0,83579.0,0.3608]
[1741528862024,0.19576,83615.0,83600.0,0.32333498]
[1741528862227,0.0001793,83622.0,83620.0,0.1196101]
[1741528862428,0.0001793,83622.0,83621.0,0.1196087]
[1741528862633,0.2762,83641.0,83640.0,0.1195815]
[1741528862829,0.3608,83645.0,83643.0,0.1195772]
[1741528863033,0.1382,83660.0,83644.0,0.137]
[1741528863226,0.53464108,83667.0,83651.0,0.1195658]
[1741528863428,0.53464108,83667.0,83666.0,0.1195443]
[1741528863629,0.53464108,83667.0,83666.0,0.3109043]
[1741528863630,0.17384108,83667.0,83666.0,0.3109043]
[1741528863928,0.09009628,83667.0,83666.0,0.3398584]
[1741528864129,0.09009628,83667.0,83666.0,0.2203141]
[1741528864330,0.09009628,83667.0,83643.0,0.0597884]
[1741528864331,0.1195701,83648.0,83647.0,0.19136]
[1741528864535,0.4803701,83648.0,83647.0,0.02951096]
[1741528864839,0.3608,83648.0,83643.0,0.0597884]
[1741528865042,0.1195737,83646.0,83645.0,0.2391435]
[1741528865334,0.3608,83648.0,83647.0,0.1195715]
[1741528865640,0.4384977,83648.0,83647.0,0.13452623]
[1741528865838,0.0001793,83654.0,83647.0,0.13452623]
[1741528865839,0.0001793,83654.0,83652.0,0.1195629]
[1741528866037,0.1197408,83654.0,83653.0,0.4362629]
[1741528866236,0.1197408,83654.0,83653.0,0.3255]
[1741528866438,0.1197408,83654.0,83653.0,0.4450629]
[1741528866633,0.33753103,83654.0,83653.0,0.3109629]
[1741528866833,0.33753103,83654.0,83653.0,0.1914]
[1741528867331,0.3906572,83657.0,83656.0,0.1195586]
[1741528867537,0.2711,83657.0,83653.0,0.1914]
[1741528867738,0.0001793,83665.0,83664.0,0.1195472]
[1741528868045,0.2086093,83686.0,83680.0,0.1195243]
[1741528868539,0.2086093,83686.0,83685.0,0.1195172]
[1741528868734,0.3281251,83686.0,83685.0,0.01494914]
[1741528868930,0.1195215,83682.0,83681.0,0.2645]
[1741528869140,0.1195215,83682.0,83681.0,0.26857197]
[1741528869342,0.3608,83690.0,83681.0,0.20881007]
[1741528869529,0.3608,83690.0,83688.0,0.1195129]
[1741528869736,0.1295,83696.0,83688.0,0.1195129]
[1741528870033,0.1195229,83681.0,83680.0,0.19292]
[1741528870237,0.0597607,83682.0,83677.0,0.1915793]
[1741528870432,0.1195272,83678.0,83677.0,0.1915793]
[1741528870649,0.1195272,83678.0,83677.0,0.20653037]
[1741528870830,0.2092893,83689.0,83688.0,0.1195129]
[1741528871037,0.2086093,83689.0,83688.0,0.134462]
[1741528871535,0.2086093,83689.0,83688.0,0.1195129]
[1741528871736,0.2086093,83689.0,83688.0,0.3835129]
[1741528872236,9e-08,83689.0,83688.0,0.78309267]
[1741528872444,0.20063617,83699.0,83698.0,0.1194986]
[1741528872639,0.15876586,83699.0,83698.0,0.32577426]
[1741528872833,0.15876586,83699.0,83698.0,0.36555002]
[1741528873037,0.11689555,83699.0,83698.0,0.36555002]
[1741528873235,0.07502524,83699.0,83698.0,0.69730323]
[1741528873440,0.65370806,83710.0,83704.0,0.1194901]
[1741528873642,0.0001793,83707.0,83704.0,0.17583335]
[1741528873934,0.19369633,83705.0,83704.0,0.20427174]
[1741528874144,0.0597225,83736.0,83720.0,0.0597333]
[1741528874337,0.29063612,83732.0,83731.0,0.1194496]
[1741528874537,0.1194515,83731.0,83730.0,0.1257]
[1741528874746,0.1194515,83731.0,83730.0,0.245153]
[1741528874939,0.29063612,83732.0,83731.0,0.1194515]
[1741528875139,0.29063612,83732.0,83731.0,0.1257]
[1741528875344,0.41008622,83732.0,83731.0,0.1257]
[1741528875543,0.41008622,83732.0,83731.0,0.2451515]
[1741528875743,0.29063612,83732.0,83731.0,0.2451515]
[1741528876048,0.1194615,83724.0,83723.0,0.00017917]
[1741528876243,0.53102636,83732.0,83731.0,0.1194515]
[1741528876437,0.1194601,83726.0,83725.0,0.1194595]
[1741528876644,0.1194601,83726.0,83725.0,0.2559595]
[1741528876842,0.119458,83729.0,83728.0,0.1194544]
[1741528877247,0.119458,83729.0,83728.0,0.2491558]
[1741528877445,0.50049023,83729.0,83723.0,0.00017917]
[1741528877747,0.3608,83724.0,83710.0,0.32333498]
[1741528878043,0.1194733,83718.0,83717.0,0.1194678]
[1741528878241,0.2564,83723.0,83719.0,0.059733]
[1741528878435,0.61565373,83723.0,83722.0,0.1194644]
[1741528878642,0.1275,83723.0,83722.0,0.1194644]
[1741528878845,0.1194658,83721.0,83720.0,0.059733]
[1741528879040,0.1289,83733.0,83718.0,0.1950345]
[1741528879240,0.059733,83722.0,83721.0,0.1791907]
[1741528879555,0.1373,83732.0,83728.0,0.1194515]
[1741528879556,0.0597284,83729.0,83728.0,0.1194515]
[1741528879737,0.0597284,83729.0,83728.0,0.3107315]
[1741528879935,0.29951863,83729.0,83728.0,0.19128]
[1741528880545,0.23979023,83729.0,83728.0,0.19128]
[1741528880747,0.35924463,83729.0,83728.0,0.19128]
[1741528881551,0.35924463,83729.0,83728.0,0.1098334]
[1741528881849,0.001,83724.0,83697.0,0.14378894]
[1741528882047,0.097492,83703.0,83702.0,0.1194901]
[1741528882347,0.1194986,83698.0,83697.0,0.14378894]
[1741528882548,0.4802986,83698.0,83697.0,0.14378894]
[1741528882744,0.1792728,83688.0,83687.0,0.1195142]
[1741528883254,0.1195158,83686.0,83683.0,0.19128]
[1741528883553,0.1195186,83684.0,83683.0,0.19128]
[1741528883755,0.1195186,83684.0,83683.0,0.3108]
[1741528884046,0.5400614,83695.0,83694.0,0.1195043]
[1741528884250,0.1195072,83692.0,83691.0,0.0597542]
[1741528884449,0.495,83705.0,83684.0,0.18468]
[1741528884649,0.3822901,83704.0,83703.0,0.1194915]
[1741528884947,0.00017917,83706.0,83702.0,0.0597464]
[1741528885149,0.1194915,83703.0,83702.0,0.001]
[1741528885939,0.1195186,83684.0,83679.0,0.36097917]
[1741528886240,0.1195186,83684.0,83679.0,0.00017917]
[1741528886444,0.1195243,83680.0,83679.0,0.00017917]
[1741528886639,0.1195243,83680.0,83665.0,0.3608]
[1741528886640,0.1195443,83666.0,83665.0,0.3608]
[1741528886847,0.3030243,83666.0,83665.0,0.3608]
[1741528887043,0.18348,83666.0,83657.0,0.1195531]
[1741528887250,0.18348,83666.0,83657.0,0.2391067]
[1741528887251,0.1195572,83658.0,83657.0,0.2391067]
[1741528887447,0.6327,83665.0,83650.0,0.19128]
[1741528887651,0.4803658,83651.0,83650.0,0.19128]
[1741528887948,0.3608,83651.0,83649.0,0.00017929]
[1741528888144,0.3915672,83650.0,83649.0,0.00017929]
[1741528888452,0.1195901,83634.0,83633.0,0.19128]
[1741528888648,0.059797,83632.0,83619.0,0.19128]
[1741528888949,0.059797,83632.0,83629.0,0.1195957]
[1741528888950,0.3608,83632.0,83629.0,0.1195957]
[1741528889246,0.1196058,83623.0,83619.0,0.19145929]
[1741528889549,0.1196058,83623.0,83622.0,0.4042709]
[1741528889748,0.272,83631.0,83619.0,0.19145929]
[1741528889943,0.0597868,83646.0,83634.0,0.1195901]
[1741528890140,9e-08,83635.0,83634.0,0.4803901]
[1741528890449,9e-08,83635.0,83634.0,0.13427202]
[1741528890646,9e-08,83635.0,83634.0,0.18168035]
[1741528891049,9e-08,83635.0,83634.0,0.19729918]
[1741528891254,9e-08,83635.0,83634.0,0.19729826]
[1741528891443,0.11958869,83635.0,83634.0,0.0595905]
[1741528891645,0.11958869,83635.0,83634.0,0.04138261]
[1741528891949,0.11958869,83635.0,83619.0,0.00017929]
[1741528891950,0.1196101,83620.0,83619.0,0.00017929]
[1741528892147,0.4804101,83620.0,83619.0,0.00017929]
[1741528892749,0.3608,83620.0,83608.0,0.3608]
[1741528892950,0.3608,83620.0,83589.0,0.19136]
[1741528892951,0.119653,83590.0,83589.0,0.19136]
[1741528893255,0.1196587,83586.0,83585.0,0.1196596]
[1741528893746,0.1196587,83586.0,83583.0,0.2846637]
[1741528893747,0.2515551,83589.0,83588.0,0.1196559]
[1741528894261,0.4927,83589.0,83579.0,0.35062201]
[1741528894550,0.1196817,83570.0,83565.0,0.1196881]
[1741528894753,0.3608,83580.0,83551.0,0.55072502]
[1741528894754,0.18252,83572.0,83564.0,0.059845]
[1741528894946,0.00022746,83570.0,83569.0,0.54042952]
[1741528895148,0.1824,83591.0,83569.0,0.42074642]
[1741528895348,0.2515504,83593.0,83592.0,0.1196502]
[1741528895548,0.119653,83590.0,83589.0,0.2526509]
[1741528895752,0.36152,83601.0,83593.0,0.1196487]
[1741528895959,0.18208,83609.0,83593.0,0.4804487]
[1741528896157,0.3608,83622.0,83615.0,0.1196172]
[1741528896350,0.3608,83633.0,83623.0,0.0598028]
[1741528896555,0.1869969,83632.0,83624.0,0.1289]
[1741528896746,0.09655326,83625.0,83624.0,0.1289]
[1741528897052,0.1272,83632.0,83628.0,0.0597989]
[1741528897353,0.1196029,83625.0,83616.0,0.0001794]
[1741528897557,0.1196144,83617.0,83616.0,0.0001794]
[1741528897748,0.4804133,83620.0,83619.0,0.1196115]
[1741528898058,0.4804133,83620.0,83616.0,0.0001794]
[1741528898059,0.1196144,83617.0,83616.0,0.0001794]
[1741528898450,0.1196459,83595.0,83594.0,0.19144]
[1741528899054,0.3608,83595.0,83564.0,0.0006]
[1741528899355,0.3608,83579.0,83566.0,0.1289]
[1741528899660,0.118686,83568.0,83567.0,0.1196794]
[1741528899855,0.0598395,83572.0,83571.0,0.1196802]
[1741528900075,0.1196845,83569.0,83568.0,0.1196843]
[1741528900356,0.3608,83643.0,83569.0,0.5984141]
[1741528900558,0.3608,83596.0,83583.0,0.3608]
[1741528900864,0.3608,83609.0,83608.0,0.1196273]
[1741528901052,0.6608258,83609.0,83608.0,0.00108703]
[1741528901262,0.3000258,83609.0,83608.0,0.00108703]
[1741528901758,0.1196373,83601.0,83600.0,0.0001794]
[1741528902055,0.4804373,83601.0,83600.0,0.0001794]
[1741528902253,0.2687,83608.0,83600.0,0.0001794]
[1741528902454,0.0001794,83617.0,83607.0,0.3608]
[1741528902656,0.1195892,83635.0,83614.0,0.3608]
[1741528902859,0.1316,83625.0,83614.0,0.3608]
[1741528903049,0.3608,83615.0,83585.0,0.3608]
[1741528903248,0.1196587,83586.0,83585.0,0.3608]
[1741528904157,0.1196587,83586.0,83577.0,0.0001794]
[1741528904158,0.1196702,83578.0,83577.0,0.1363794]
[1741528904350,0.1196702,83578.0,83577.0,0.256051]
[1741528904550,0.1126702,83578.0,83577.0,0.1363794]
[1741528904951,0.1196702,83578.0,83577.0,0.2560478]
[1741528905251,0.251261,83585.0,83584.0,0.1196616]
[1741528905453,0.1196702,83578.0,83577.0,0.1363794]
[1741528905849,0.4804702,83578.0,83577.0,0.1363794]
[1741528906155,0.1196702,83578.0,83577.0,0.256051]
[1741528906458,0.1316,83585.0,83584.0,0.1196616]
[1741528906656,0.1316,83585.0,83579.0,0.4206337]
[1741528906862,0.1794988,83583.0,83582.0,0.1196616]
[1741528907357,0.18032,83592.0,83580.0,0.1385]
[1741528907552,0.2971038,83611.0,83610.0,0.1196201]
[1741528907757,0.17752,83618.0,83600.0,0.32333498]
[1741528907951,0.1329,83610.0,83601.0,0.2688]
[1741528908153,0.1196358,83602.0,83601.0,0.1339]
[1741528908564,0.3608,83607.0,83604.0,0.1196301]
[1741528908762,0.3608,83607.0,83593.0,0.0001794]
[1741528908763,0.7216,83605.0,83593.0,0.0001794]
[1741528909057,0.7216,83605.0,83573.0,0.1352]
[1741528909058,0.1196759,83574.0,83573.0,0.1352]
[1741528909261,0.3608,83585.0,83573.0,0.1352]
[1741528909460,0.2525688,83581.0,83580.0,0.1196673]
[1741528909651,0.2525688,83581.0,83578.0,0.0598349]
[1741528909652,0.0598369,83576.0,83575.0,0.1196745]
[1741528909852,0.1196745,83575.0,83574.0,0.1349]
[1741528910154,0.1196745,83575.0,83574.0,0.13599317]
[1741528910155,0.1186745,83575.0,83574.0,0.13599317]
[1741528910458,0.1186745,83575.0,83574.0,0.00109317]
[1741528911156,0.1186745,83575.0,83574.0,0.12076907]
[1741528911367,0.1186745,83575.0,83574.0,0.12135153]
[1741528911664,0.1186745,83575.0,83574.0,0.00167563]
[1741528911856,0.2453745,83575.0,83574.0,0.00167563]
[1741528912052,0.002,83576.0,83574.0,0.12135153]
[1741528912258,0.1948,83604.0,83575.0,0.1373]
[1741528912455,0.13939611,83607.0,83594.0,0.14523394]
[1741528912659,0.09748811,83607.0,83606.0,0.1196301]
[1741528913360,0.17241187,83613.0,83605.0,0.2737]
[1741528913555,0.17241187,83613.0,83612.0,0.1196215]
[1741528913762,0.29203197,83613.0,83612.0,0.1196215]
[1741528913953,0.17241187,83613.0,83606.0,0.00167563]
[1741528914153,0.3190714,83617.0,83606.0,0.00167563]
[1741528914353,0.01178821,83630.0,83629.0,0.1195972]
[1741528914554,0.3608,83637.0,83629.0,0.36247563]
[1741528914855,0.1195958,83630.0,83629.0,0.00167563]
[1741528915356,0.3608,83661.0,83641.0,0.1195801]
[1741528915564,0.1501,83652.0,83641.0,0.48205573]
[1741528915867,0.1195741,83646.0,83641.0,0.12125573]
[1741528916052,0.36268449,83642.0,83641.0,0.12125573]
[1741528916258,0.24310589,83642.0,83641.0,0.12125573]
[1741528916963,0.20012,83683.0,83641.0,0.03880306]
[1741528917160,0.3608,83690.0,83681.0,0.1195229]
[1741528917161,0.3195624,83682.0,83681.0,0.1195229]
[1741528917460,0.3195624,83682.0,83655.0,0.3608]
[1741528917461,0.1195443,83666.0,83665.0,0.19148]
[1741528917666,0.11786867,83666.0,83665.0,0.3110258]
[1741528918062,0.47866867,83666.0,83665.0,0.19148]
[1741528918563,0.11786867,83666.0,83665.0,0.19148]
[1741528918767,0.44556867,83666.0,83665.0,0.19148]
[1741528919158,0.44556867,83666.0,83657.0,0.00017928]
[1741528919159,0.1195558,83658.0,83657.0,0.00017928]
[1741528919466,0.4803558,83658.0,83657.0,0.00017928]
[1741528919661,0.6303558,83658.0,83657.0,0.00017928]
[1741528919965,0.1195743,83645.0,83644.0,0.19148]
[1741528920371,0.00072,83646.0,83645.0,0.1793614]
[1741528920666,0.32252,83657.0,83656.0,0.1195586]
[1741528921254,0.00017928,83665.0,83655.0,0.1678]
[1741528921459,0.00017928,83665.0,83664.0,0.4803472]
[1741528921658,0.1195472,83664.0,83663.0,0.2873486]
[1741528921869,0.37791929,83701.0,83664.0,0.1195472]
[1741528922070,0.19684,83699.0,83680.0,0.0597615]
[1741528922272,0.1194874,83706.0,83705.0,0.1194851]